fUSD/lending_fUSD_20250105
["ID","MTS","AMOUNT","RATE_DAILY","PERIOD"]
[347709639,1736076643020,-694.57,8.493e-05,2]
[347709640,1736076643030,-500.0,8.493e-05,2]
[347709641,1736076643039,-1853.7,8.493e-05,2]
[347709642,1736076643049,-988.58,8.493e-05,2]
[347709643,1736076643059,-681.33,8.493e-05,2]
[347709644,1736076643068,-500.0,8.493e-05,2]
[347709645,1736076643077,-500.0,8.493e-05,2]
[347709646,1736076643087,-500.0,8.493e-05,2]
[347709647,1736076643096,-1976.44,8.493e-05,2]
[347709648,1736076643105,-591.11,8.493e-05,2]
[347709649,1736076643114,-502.64085407,8.493e-05,2]
[347709650,1736076643124,-500.0,8.493e-05,2]
[347709651,1736076643133,-500.0,8.493e-05,2]
[347709652,1736076643143,-500.0,8.493e-05,2]
[347709653,1736076643152,-533.77951205,8.493e-05,2]
[347709654,1736076643162,-732.16,8.493e-05,2]
[347709655,1736076643171,-500.0,8.493e-05,2]
[347709656,1736076643180,-805.68,8.493e-05,2]
[347709657,1736076643190,-500.0,8.493e-05,2]
[347709658,1736076643199,-500.0,8.493e-05,2]
[347709659,1736076643208,-1068.56,8.493e-05,2]
[347709660,1736076643217,-527.7,8.493e-05,2]
[347709661,1736076643227,-500.0,8.493e-05,2]
[347709662,1736076643236,-614.30035022,8.493e-05,2]
[347709663,1736076643246,-1126.8,8.493e-05,2]
[347709664,1736076643255,-1497.15,8.493e-05,2]
[347709665,1736076643264,-552.25,8.493e-05,2]
[347709666,1736076643273,-853.95,8.493e-05,2]
[347709667,1736076643282,-1890.23,8.493e-05,2]
[347709668,1736076643292,-500.0,8.493e-05,2]
[347709669,1736076643301,-617.77,8.493e-05,2]
[347709670,1736076643310,-1545.9,8.493e-05,2]
[347709671,1736076643319,-500.0,8.493e-05,2]
[347709672,1736076643329,-500.0,8.493e-05,2]
[347709673,1736076643338,-500.0,8.493e-05,2]
[347709674,1736076643348,-543.98,8.493e-05,2]
[347709676,1736076643357,-500.0,8.493e-05,2]
[347709677,1736076643367,-761.95,8.493e-05,2]
[347709678,1736076643376,-500.0,8.493e-05,2]
[347709680,1736076643386,-500.0,8.493e-05,2]
[347709681,1736076643396,-1301.13,8.493e-05,2]
[347709682,1736076643406,-596.3,8.493e-05,2]
[347709683,1736076643415,-3870.26,8.493e-05,2]
[347709684,1736076643425,-656.38,8.493e-05,2]
[347709685,1736076643434,-500.0,8.493e-05,2]
[347709686,1736076643444,-500.0,8.493e-05,2]
[347709687,1736076643453,-607.28,8.493e-05,2]
[347709688,1736076643463,-601.28,8.493e-05,2]
[347709689,1736076643472,-1197.33,8.493e-05,2]
[347709690,1736076643481,-500.0,8.493e-05,2]
[347709691,1736076643491,-500.0,8.493e-05,2]
[347709692,1736076643503,-3285.56,8.493e-05,2]
[347709693,1736076643513,-500.0,8.493e-05,2]
[347709694,1736076643522,-500.0,8.493e-05,2]
[347709695,1736076643532,-655.16,8.493e-05,2]
[347709696,1736076643541,-581.31,8.493e-05,2]
[347709697,1736076643551,-500.0,8.493e-05,2]
[347709698,1736076643560,-518.93,8.493e-05,2]
[347709699,1736076643570,-500.0,8.493e-05,2]
[347709701,1736076643580,-584.59,8.493e-05,2]
[347709703,1736076643589,-500.0,8.493e-05,2]
[347709705,1736076643598,-500.0,8.493e-05,2]
[347709706,1736076643608,-732.58,8.493e-05,2]
[347709707,1736076643617,-2323.52,8.493e-05,2]
[347709708,1736076643627,-500.0,8.493e-05,2]
[347709709,1736076643637,-500.0,8.493e-05,2]
[347709710,1736076643647,-500.0,8.493e-05,2]
[347709713,1736076643657,-500.0,8.493e-05,2]
[347709714,1736076643666,-500.0,8.493e-05,2]
[347709715,1736076643676,-500.0,8.493e-05,2]
[347709717,1736076643685,-1017.19,8.493e-05,2]
[347709718,1736076643695,-500.0,8.493e-05,2]
[347709719,1736076643704,-500.0,8.493e-05,2]
[347709720,1736076643714,-764.71,8.493e-05,2]
[347709721,1736076643723,-500.0,8.493e-05,2]
[347709722,1736076643733,-695.42,8.493e-05,2]
[347709723,1736076643743,-5299.64,8.493e-05,2]
[347709724,1736076643753,-881.06,8.493e-05,2]
[347709725,1736076643762,-647.35,8.493e-05,2]
[347709726,1736076643772,-2167.22,8.493e-05,2]
[347709727,1736076643781,-800.0,8.493e-05,2]
[347709728,1736076643791,-500.0,8.493e-05,2]
[347709729,1736076643801,-5135.6,8.493e-05,2]
[347709730,1736076643810,-500.0,8.493e-05,2]
[347709731,1736076643820,-500.0,8.493e-05,2]
[347709732,1736076643829,-500.0,8.493e-05,2]
[347709733,1736076643839,-500.0,8.493e-05,2]
[347709734,1736076643848,-500.0,8.493e-05,2]
[347709735,1736076643858,-500.0,8.493e-05,2]
[347709736,1736076643867,-500.0,8.493e-05,2]
[347709737,1736076643876,-509.53778894,8.493e-05,2]
[347709738,1736076643886,-1392.32,8.493e-05,2]
[347709739,1736076643896,-804.12,8.493e-05,2]
[347709740,1736076643905,-547.74,8.493e-05,2]
[347709741,1736076643915,-1033.91,8.493e-05,2]
[347709742,1736076643924,-500.0,8.493e-05,2]
[347709743,1736076643934,-500.0,8.493e-05,2]
[347709744,1736076643943,-500.0,8.493e-05,2]
[347709745,1736076643953,-500.0,8.493e-05,2]
[347709746,1736076643962,-500.0,8.493e-05,2]
[347709747,1736076643972,-652.05,8.493e-05,2]
[347709748,1736076643982,-756.85,8.493e-05,2]
[347709749,1736076643992,-500.0,8.493e-05,2]
[347709750,1736076644002,-500.0,8.493e-05,2]
[347709751,1736076644011,-3155.83,8.493e-05,2]
[347709752,1736076644021,-500.0,8.493e-05,2]
[347709753,1736076644031,-1085.24,8.493e-05,2]
[347709754,1736076644040,-938.7,8.493e-05,2]
[347709755,1736076644050,-500.0,8.493e-05,2]
[347709756,1736076644059,-500.0,8.493e-05,2]
[347709757,1736076644069,-1215.77,8.493e-05,2]
[347709758,1736076644079,-500.0,8.493e-05,2]
[347709759,1736076644088,-3948.78,8.493e-05,2]
[347709760,1736076644098,-500.0,8.493e-05,2]
[347709761,1736076644107,-887.75,8.493e-05,2]
[347709762,1736076644118,-690.62,8.493e-05,2]
[347709763,1736076644128,-500.0,8.493e-05,2]
[347709764,1736076644138,-500.0,8.493e-05,2]
[347709765,1736076644147,-1807.32,8.493e-05,2]
[347709766,1736076644157,-878.23,8.493e-05,2]
[347709767,1736076644167,-1172.47,8.493e-05,2]
[347709768,1736076644177,-520.62,8.493e-05,2]
[347709769,1736076644186,-500.0,8.493e-05,2]
[347709770,1736076644196,-502.63527972,8.493e-05,2]
[347709771,1736076644205,-1063.47,8.493e-05,2]
[347709772,1736076644215,-932.02,8.493e-05,2]
[347709773,1736076644225,-2594.22,8.493e-05,2]
[347709774,1736076644235,-500.0,8.493e-05,2]
[347709775,1736076644245,-500.0,8.493e-05,2]
[347709776,1736076644254,-506.27399574,8.493e-05,2]
[347709777,1736076644264,-636.64,8.493e-05,2]
[347709778,1736076644274,-500.0,8.493e-05,2]
[347709779,1736076644284,-650.42,8.493e-05,2]
[347709780,1736076644294,-1337.11,8.493e-05,2]
[347709781,1736076644303,-500.0,8.493e-05,2]
[347709782,1736076644313,-500.0,8.493e-05,2]
[347709783,1736076644323,-500.0,8.493e-05,2]
[347709784,1736076644332,-151.405091,8.493e-05,2]
[347709785,1736076644342,-500.0,8.493e-05,2]
[347709786,1736076644351,-500.0,8.493e-05,2]
[347709787,1736076644360,-500.0,8.493e-05,2]
[347709788,1736076644370,-500.0,8.493e-05,2]
[347709789,1736076644380,-954.75,8.493e-05,2]
[347709790,1736076644390,-500.0,8.493e-05,2]
[347709791,1736076644400,-698.14,8.493e-05,2]
[347709792,1736076644410,-500.0,8.493e-05,2]
[347709793,1736076644419,-740.03,8.493e-05,2]
[347709794,1736076644430,-500.0,8.493e-05,2]
[347709795,1736076644439,-500.0,8.493e-05,2]
[347709796,1736076644449,-500.0,8.493e-05,2]
[347709797,1736076644459,-500.0,8.493e-05,2]
[347709798,1736076644468,-500.0,8.493e-05,2]
[347709799,1736076644478,-684.78,8.493e-05,2]
[347709800,1736076644488,-500.0,8.493e-05,2]
[347709801,1736076644498,-500.0,8.493e-05,2]
[347709802,1736076644512,-500.0,8.493e-05,2]
[347709803,1736076644522,-516.75,8.493e-05,2]
[347709804,1736076644531,-500.0,8.493e-05,2]
[347709805,1736076644541,-500.0,8.493e-05,2]
[347709806,1736076644551,-722.38,8.493e-05,2]
[347709807,1736076644561,-725.43,8.493e-05,2]
[347709808,1736076644570,-500.0,8.493e-05,2]
[347709809,1736076644580,-500.0,8.493e-05,2]
[347709810,1736076644590,-500.0,8.493e-05,2]
[347709811,1736076644600,-656.73,8.493e-05,2]
[347709812,1736076644609,-500.0,8.493e-05,2]
[347709813,1736076644619,-500.0,8.493e-05,2]
[347709814,1736076644629,-1928.88,8.493e-05,2]
[347709815,1736076644638,-222.07236187,8.493e-05,2]
[347709816,1736076644648,-529.75,8.493e-05,2]
[347709817,1736076644657,-894.28,8.493e-05,2]
[347709818,1736076644666,-500.0,8.493e-05,2]
[347709819,1736076644676,-500.0,8.493e-05,2]
[347709820,1736076644686,-500.0,8.493e-05,2]
[347709821,1736076644695,-159.068643,8.493e-05,2]
[347709822,1736076644705,-542.34,8.493e-05,2]
[347709823,1736076644714,-500.0,8.493e-05,2]
[347709824,1736076644724,-500.0,8.493e-05,2]
[347709825,1736076644734,-1050.68,8.493e-05,2]
[347709826,1736076644743,-1136.03,8.493e-05,2]
[347709827,1736076644753,-500.0,8.493e-05,2]
[347709828,1736076645036,-785.85,8.493e-05,2]
[347709829,1736076645051,-5182.33,8.493e-05,2]
[347709830,1736076645061,-842.26,8.493e-05,2]
[347709831,1736076645071,-500.0,8.493e-05,2]
[347709832,1736076645080,-567.04,8.493e-05,2]
[347709833,1736076645090,-500.0,8.493e-05,2]
[347709834,1736076645099,-2393.03,8.493e-05,2]
[347709835,1736076645109,-661.2,8.493e-05,2]
[347709836,1736076645118,-500.0,8.493e-05,2]
[347709837,1736076645128,-500.0,8.493e-05,2]
[347709838,1736076645138,-500.0,8.493e-05,2]
[347709839,1736076645147,-3871.94,8.493e-05,2]
[347709840,1736076645157,-820.53,8.493e-05,2]
[347709841,1736076645167,-500.0,8.493e-05,2]
[347709842,1736076645176,-517.23,8.493e-05,2]
[347709843,1736076645186,-812.18,8.493e-05,2]
[347709844,1736076645195,-500.0,8.493e-05,2]
[347709845,1736076645204,-500.0,8.493e-05,2]
[347709846,1736076645214,-508.09,8.493e-05,2]
[347709847,1736076645223,-500.0,8.493e-05,2]
[347709848,1736076645232,-500.0,8.493e-05,2]
[347709849,1736076645242,-500.0,8.493e-05,2]
[347709850,1736076645254,-500.0,8.493e-05,2]
[347709851,1736076645264,-1722.13,8.493e-05,2]
[347709852,1736076645274,-500.0,8.493e-05,2]
[347709853,1736076645284,-500.0,8.493e-05,2]
[347709854,1736076645294,-2435.43,8.493e-05,2]
[347709855,1736076645304,-1479.15,8.493e-05,2]
[347709856,1736076645313,-500.0,8.493e-05,2]
[347709857,1736076645323,-500.0,8.493e-05,2]
[347709858,1736076645332,-2629.55,8.493e-05,2]
[347709859,1736076645342,-775.39,8.493e-05,2]
[347709860,1736076645351,-500.0,8.493e-05,2]
[347709861,1736076645361,-500.0,8.493e-05,2]
[347709862,1736076645370,-500.0,8.493e-05,2]
[347709863,1736076645380,-1084.85,8.493e-05,2]
[347709864,1736076645389,-500.0,8.493e-05,2]
[347709865,1736076645398,-1479.96,8.493e-05,2]
[347709866,1736076645408,-5610.7,8.493e-05,2]
[347709867,1736076645418,-642.1,8.493e-05,2]
[347709868,1736076645427,-857.12,8.493e-05,2]
[347709869,1736076645438,-4352.51,8.493e-05,2]
[347709870,1736076645448,-753.42,8.493e-05,2]
[347709871,1736076645457,-500.0,8.493e-05,2]
[347709872,1736076645467,-4189.49,8.493e-05,2]
[347709873,1736076645476,-500.0,8.493e-05,2]
[347709874,1736076645486,-500.0,8.493e-05,2]
[347709875,1736076645495,-1274.97,8.493e-05,2]
[347709876,1736076645508,-573.56,8.493e-05,2]
[347709877,1736076645518,-500.0,8.493e-05,2]
[347709878,1736076645527,-500.0,8.493e-05,2]
[347709879,1736076645536,-500.0,8.493e-05,2]
[347709880,1736076645545,-500.0,8.493e-05,2]
[347709881,1736076645554,-1788.55,8.493e-05,2]
[347709882,1736076645563,-631.66,8.493e-05,2]
[347709883,1736076645572,-904.09,8.493e-05,2]
[347709884,1736076645582,-1715.62,8.493e-05,2]
[347709885,1736076645591,-500.0,8.493e-05,2]
[347709886,1736076645600,-1090.03,8.493e-05,2]
[347709887,1736076645610,-1296.99,8.493e-05,2]
[347709888,1736076645619,-1668.23,8.493e-05,2]
[347709889,1736076645630,-1245.54,8.493e-05,2]
[347709890,1736076645640,-500.0,8.493e-05,2]
[347709891,1736076645650,-500.0,8.493e-05,2]
[347709892,1736076645659,-1017.28,8.493e-05,2]
[347709893,1736076645669,-500.0,8.493e-05,2]
[347709894,1736076645680,-5127.87,8.493e-05,2]
[347709895,1736076645690,-500.0,8.493e-05,2]
[347709896,1736076645699,-1218.51,8.493e-05,2]
[347709897,1736076645709,-1372.97,8.493e-05,2]
[347709899,1736076645719,-500.0,8.493e-05,2]
[347709900,1736076645729,-500.0,8.493e-05,2]
[347709901,1736076645738,-560.67,8.493e-05,2]
[347709902,1736076645748,-500.0,8.493e-05,2]
[347709903,1736076645758,-500.0,8.493e-05,2]
[347709904,1736076645768,-1408.39,8.493e-05,2]
[347709905,1736076645777,-1419.68,8.493e-05,2]
[347709906,1736076645787,-500.0,8.493e-05,2]
[347709907,1736076645796,-500.0,8.493e-05,2]
[347709908,1736076645806,-500.0,8.493e-05,2]
[347709909,1736076645816,-1751.39,8.493e-05,2]
[347709910,1736076645826,-500.0,8.493e-05,2]
[347709911,1736076645836,-500.0,8.493e-05,2]
[347709912,1736076645846,-500.0,8.493e-05,2]
[347709913,1736076645856,-500.0,8.493e-05,2]
[347709914,1736076645865,-291.11808226,8.493e-05,2]
[347709915,1736076645875,-644.11,8.493e-05,2]
[347709917,1736076645884,-500.0,8.493e-05,2]
[347709918,1736076645894,-500.0,8.493e-05,2]
[347709919,1736076645904,-500.0,8.493e-05,2]
[347709920,1736076645913,-500.0,8.493e-05,2]
[347709921,1736076645923,-500.0,8.493e-05,2]
[347709922,1736076645932,-500.0,8.493e-05,2]
[347709923,1736076645942,-16743.84,8.493e-05,2]
[347709924,1736076645952,-557.05,8.493e-05,2]
[347709925,1736076645961,-500.0,8.493e-05,2]
[347709926,1736076645971,-500.0,8.493e-05,2]
[347709927,1736076645980,-998.13,8.493e-05,2]
[347709928,1736076645990,-500.0,8.493e-05,2]
[347709929,1736076646000,-674.63,8.493e-05,2]
[347709930,1736076646009,-1623.52,8.493e-05,2]
[347709931,1736076646018,-500.0,8.493e-05,2]
[347709932,1736076646028,-1744.57,8.493e-05,2]
[347709933,1736076646037,-500.0,8.493e-05,2]
[347709934,1736076646047,-500.0,8.493e-05,2]
[347709935,1736076646056,-500.0,8.493e-05,2]
[347709936,1736076646066,-500.0,8.493e-05,2]
[347709937,1736076646075,-1111.28,8.493e-05,2]
[347709938,1736076646085,-3530.55,8.493e-05,2]
[347709939,1736076646095,-500.0,8.493e-05,2]
[347709940,1736076646104,-750.33,8.493e-05,2]
[347709941,1736076646113,-6549.87,8.493e-05,2]
[347709942,1736076646123,-2059.92,8.493e-05,2]
[347709943,1736076646133,-1216.86,8.493e-05,2]
[347709944,1736076646143,-500.0,8.493e-05,2]
[347709945,1736076646153,-500.0,8.493e-05,2]
[347709946,1736076646163,-1861.52,8.493e-05,2]
[347709947,1736076646173,-500.0,8.493e-05,2]
[347709948,1736076646183,-547.16,8.493e-05,2]
[347709949,1736076646192,-500.0,8.493e-05,2]
[347709950,1736076646203,-747.43,8.493e-05,2]
[347709951,1736076646212,-500.0,8.493e-05,2]
[347709952,1736076646221,-1221.81,8.493e-05,2]
[347709953,1736076646231,-1317.31,8.493e-05,2]
[347709954,1736076646240,-500.0,8.493e-05,2]
[347709955,1736076646250,-500.0,8.493e-05,2]
[347709956,1736076646259,-5390.16,8.493e-05,2]
[347709957,1736076646268,-1009.21,8.493e-05,2]
[347709958,1736076646278,-2881.15,8.493e-05,2]
[347709959,1736076646287,-928.39,8.493e-05,2]
[347709960,1736076646297,-500.0,8.493e-05,2]
[347709962,1736076646306,-701.81,8.493e-05,2]
[347709964,1736076646316,-2069.18,8.493e-05,2]
[347709966,1736076646325,-500.0,8.493e-05,2]
[347709968,1736076646334,-2248.1,8.493e-05,2]
[347709970,1736076646344,-500.0,8.493e-05,2]
[347709972,1736076646353,-1539.39,8.493e-05,2]
[347709974,1736076646363,-673.51,8.493e-05,2]
[347709976,1736076646373,-7370.29,8.493e-05,2]
[347709978,1736076646384,-1280.12,8.493e-05,2]
[347709980,1736076646395,-10893.72,8.493e-05,2]
[347709982,1736076646406,-1036.28,8.493e-05,2]
[347709984,1736076646416,-1373.2,8.493e-05,2]
[347709986,1736076646426,-4622.84,8.493e-05,2]
[347709988,1736076646435,-3815.44,8.493e-05,2]
[347709990,1736076646444,-500.0,8.493e-05,2]
[347709992,1736076646454,-1642.33,8.493e-05,2]
[347709994,1736076646463,-4597.68,8.493e-05,2]
[347709996,1736076646473,-500.0,8.493e-05,2]
[347709998,1736076646482,-1339.88,8.493e-05,2]
[347710000,1736076646492,-4184.98,8.493e-05,2]
[347710002,1736076646504,-1151.92,8.493e-05,2]
[347710004,1736076646513,-500.0,8.493e-05,2]
[347710006,1736076646522,-500.0,8.493e-05,2]
[347710008,1736076646532,-500.0,8.493e-05,2]
[347710009,1736076646542,-500.0,8.493e-05,2]
[347710011,1736076646552,-1607.87,8.493e-05,2]
[347710014,1736076646562,-500.0,8.493e-05,2]
[347710015,1736076646572,-10588.71,8.493e-05,2]
[347710017,1736076646583,-672.89,8.493e-05,2]
[347710019,1736076646592,-500.0,8.493e-05,2]
[347710021,1736076646601,-1591.21,8.493e-05,2]
[347710023,1736076646610,-5298.15,8.493e-05,2]
[347710025,1736076646620,-5237.54,8.493e-05,2]
[347710027,1736076646629,-500.0,8.493e-05,2]
[347710030,1736076646648,-2075.87,8.493e-05,2]
[347710032,1736076646659,-2596.58,8.493e-05,2]
[347710034,1736076646669,-1342.26,8.493e-05,2]
[347710037,1736076646681,-500.0,8.493e-05,2]
[347710038,1736076646690,-500.0,8.493e-05,2]
[347710041,1736076646700,-1224.92,8.493e-05,2]
[347710043,1736076646711,-4563.51,8.493e-05,2]
[347710045,1736076646720,-2583.58,8.493e-05,2]
[347710047,1736076646730,-500.0,8.493e-05,2]
[347710049,1736076646740,-500.0,8.493e-05,2]
[347710051,1736076646749,-500.0,8.493e-05,2]
[347710053,1736076646759,-500.0,8.493e-05,2]
[347710055,1736076646769,-500.0,8.493e-05,2]
[347710057,1736076646778,-500.0,8.493e-05,2]
[347710059,1736076646787,-657.55,8.493e-05,2]
[347710061,1736076646797,-682.38,8.493e-05,2]
[347710063,1736076646806,-500.0,8.493e-05,2]
[347710065,1736076646816,-942.05,8.493e-05,2]
[347710067,1736076646825,-729.18,8.493e-05,2]
[347710069,1736076646835,-500.0,8.493e-05,2]
[347710071,1736076646844,-500.0,8.493e-05,2]
[347710073,1736076646854,-1304.69,8.493e-05,2]
[347710075,1736076646864,-500.0,8.493e-05,2]
[347710077,1736076646874,-1711.65,8.493e-05,2]
[347710079,1736076646884,-500.0,8.493e-05,2]
[347710081,1736076646895,-682.24,8.493e-05,2]
[347710083,1736076646904,-1616.99,8.493e-05,2]
[347710085,1736076646914,-1574.88,8.493e-05,2]
[347710087,1736076646924,-500.0,8.493e-05,2]
[347710089,1736076646934,-500.0,8.493e-05,2]
[347710091,1736076646943,-500.0,8.493e-05,2]
[347710093,1736076646953,-615.67,8.493e-05,2]
[347710095,1736076646963,-500.0,8.493e-05,2]
[347710097,1736076646972,-1293.53,8.493e-05,2]
[347710099,1736076646982,-1291.98,8.493e-05,2]
[347710101,1736076646991,-500.0,8.493e-05,2]
[347710103,1736076647001,-655.53,8.493e-05,2]
[347710105,1736076647011,-500.0,8.493e-05,2]
[347710107,1736076647021,-733.39,8.493e-05,2]
[347710109,1736076647032,-1405.49,8.493e-05,2]
[347710111,1736076647042,-771.75,8.5e-05,2]
[347710113,1736076647051,-183.43,8.5e-05,2]
[347710115,1736076647061,-436.94,8.5e-05,2]
[347710117,1736076647070,-150.91,8.5e-05,2]
[347710119,1736076647080,-150.0,8.522e-05,2]
[347710121,1736076647090,-832.28302639,8.554e-05,2]
[347710124,1736076647099,-1100.0,8.6e-05,3]
[347710126,1736076647109,-150.0,8.61e-05,2]
[347710128,1736076647119,-5980.1711,8.667e-05,2]
[347710130,1736076647128,-150.0,8.699e-05,2]
[347710132,1736076647139,-1500.0,8.7e-05,3]
[347710134,1736076647151,-365.86895727,8.732e-05,2]
[347710136,1736076647160,-1639.43,8.766e-05,2]
[347710138,1736076647170,-500.0,8.766e-05,2]
[347710140,1736076647179,-500.0,8.766e-05,2]
[347710142,1736076647189,-500.0,8.766e-05,2]
[347710144,1736076647198,-1151.02,8.766e-05,2]
[347710146,1736076647208,-1151.02,8.766e-05,2]
[347710148,1736076647218,-579.28,8.766e-05,2]
[347710150,1736076647227,-594.66,8.766e-05,2]
[347710152,1736076647236,-926.54,8.766e-05,2]
[347710154,1736076647246,-643.85,8.766e-05,2]
[347710156,1736076647255,-2469.42,8.766e-05,2]
[347710158,1736076647265,-2366.53,8.766e-05,2]
[347710160,1736076647275,-2851.63,8.766e-05,2]
[347710162,1736076647284,-1736.69,8.766e-05,2]
[347710164,1736076647294,-4173.68,8.766e-05,2]
[347710166,1736076647303,-1583.4,8.766e-05,2]
[347710168,1736076647314,-11960.52,8.766e-05,2]
[347710170,1736076647323,-1690.43,8.767e-05,2]
[347710172,1736076647332,-500.0,8.767e-05,2]
[347710174,1736076647342,-500.0,8.767e-05,2]
[347710176,1736076647351,-780.97,8.767e-05,2]
[347710178,1736076647360,-500.0,8.767e-05,2]
[347710180,1736076647369,-500.0,8.767e-05,2]
[347710182,1736076647378,-500.0,8.767e-05,2]
[347710185,1736076647395,-500.0,8.767e-05,2]
[347710187,1736076647406,-724.24,8.767e-05,2]
[347710189,1736076647416,-637.65,8.767e-05,2]
[347710191,1736076647424,-500.0,8.767e-05,2]
[347710193,1736076647433,-509.7,8.767e-05,2]
[347710195,1736076647443,-500.0,8.767e-05,2]
[347710197,1736076647452,-500.0,8.767e-05,2]
[347710199,1736076647461,-500.0,8.767e-05,2]
[347710201,1736076647470,-500.0,8.767e-05,2]
[347710203,1736076647479,-500.0,8.767e-05,2]
[347710205,1736076647488,-738.62,8.767e-05,2]
[347710207,1736076647498,-500.0,8.767e-05,2]
[347710209,1736076647510,-500.0,8.767e-05,2]
[347710211,1736076647519,-566.25,8.767e-05,2]
[347710213,1736076647528,-500.0,8.767e-05,2]
[347710214,1736076647537,-500.0,8.767e-05,2]
[347710216,1736076647547,-500.0,8.767e-05,2]
[347710218,1736076647556,-500.0,8.767e-05,2]
[347710220,1736076647565,-500.0,8.767e-05,2]
[347710222,1736076647575,-730.26,8.767e-05,2]
[347710224,1736076647584,-500.0,8.767e-05,2]
[347710226,1736076647593,-500.0,8.767e-05,2]
[347710228,1736076647602,-500.0,8.767e-05,2]
[347710230,1736076647611,-500.0,8.767e-05,2]
[347710232,1736076647620,-500.0,8.767e-05,2]
[347710234,1736076647629,-500.0,8.767e-05,2]
[347710236,1736076647639,-500.0,8.767e-05,2]
[347710238,1736076647648,-526.81,8.767e-05,2]
[347710240,1736076647657,-500.0,8.767e-05,2]
[347710242,1736076647666,-500.0,8.767e-05,2]
[347710244,1736076647675,-788.22,8.767e-05,2]
[347710246,1736076647685,-500.0,8.767e-05,2]
[347710248,1736076647694,-500.0,8.767e-05,2]
[347710250,1736076647703,-500.0,8.767e-05,2]
[347710252,1736076647712,-542.96,8.767e-05,2]
[347710254,1736076647722,-500.0,8.767e-05,2]
[347710256,1736076647731,-500.0,8.767e-05,2]
[347710258,1736076647740,-1000.0,8.767e-05,2]
[347710260,1736076647750,-500.0,8.767e-05,2]
[347710262,1736076647759,-500.0,8.767e-05,2]
[347710264,1736076647768,-500.0,8.767e-05,2]
[347710266,1736076647777,-500.0,8.767e-05,2]
[347710268,1736076647787,-500.0,8.767e-05,2]
[347710270,1736076647796,-957.51,8.767e-05,2]
[347710272,1736076647806,-500.0,8.767e-05,2]
[347710274,1736076647815,-500.0,8.767e-05,2]
[347710276,1736076647824,-500.0,8.767e-05,2]
[347710278,1736076647833,-500.0,8.767e-05,2]
[347710280,1736076647842,-500.0,8.767e-05,2]
[347710282,1736076647852,-500.0,8.767e-05,2]
[347710284,1736076647861,-500.0,8.767e-05,2]
[347710286,1736076647870,-500.0,8.767e-05,2]
[347710288,1736076647879,-266.24,8.767e-05,2]
[347710290,1736076647888,-500.0,8.767e-05,2]
[347710292,1736076647898,-500.0,8.767e-05,2]
[347710294,1736076647907,-500.0,8.767e-05,2]
[347710296,1736076647916,-529.16,8.767e-05,2]
[347710298,1736076647926,-681.29,8.767e-05,2]
[347710300,1736076647935,-500.0,8.767e-05,2]
[347710302,1736076647944,-500.0,8.767e-05,2]
[347710304,1736076647953,-577.45,8.767e-05,2]
[347710306,1736076647962,-500.0,8.767e-05,2]
[347710308,1736076647971,-500.0,8.767e-05,2]
[347710310,1736076647980,-500.0,8.767e-05,2]
[347710312,1736076647990,-523.85,8.767e-05,2]
[347710314,1736076648000,-626.08,8.767e-05,2]
[347710316,1736076648009,-500.0,8.767e-05,2]
[347710318,1736076648018,-500.0,8.767e-05,2]
[347710320,1736076648028,-500.0,8.767e-05,2]
[347710322,1736076648037,-500.0,8.767e-05,2]
[347710324,1736076648046,-500.0,8.767e-05,2]
[347710326,1736076648055,-500.0,8.767e-05,2]
[347710328,1736076648065,-500.0,8.767e-05,2]
[347710330,1736076648074,-1213.92,8.767e-05,2]
[347710332,1736076648083,-640.69,8.767e-05,2]
[347710334,1736076648092,-500.0,8.767e-05,2]
[347710336,1736076648101,-500.0,8.767e-05,2]
[347710338,1736076648110,-500.0,8.767e-05,2]